Cogmind - Beta 14 @@@ ROGUE MODE // 2024.11.25 @ 03:44:35 Player: akira Result: Self-destructed Performance ------------- Evolutions (2) 1000 Regions Visited (4) 800 Robots Destroyed (57) 285 Value Destroyed (1703) 1703 Prototype IDs (6) 120 Alien Tech Used (0) 0 Bonus (357) 357 TOTAL SCORE: 4265 Bonus ------- High Alert Combat Kills 157 Entered Garrisons 200 Cogmind --------- Core Integrity 127/550 Matter 210/300 Energy 96/100 System Corruption 0% Temperature Warm (120) Movement Core (250) Ox4 Location -8/Garrison Parts ------- > --- POWER (1) -------- (None) > --- PROPULSION (3) --- (None) > --- UTILITY (5) ------ Medium Storage Unit Transport Network Coupler Advanced Targeting Computer > --- WEAPON (2) ------- Improved Medium Laser > --- INVENTORY (10) --- Light Deuterium Engine Improved Terrain Scanner Authchip [Device] Authchip [Armor] Peak State ------------ > --- POWER ------------ Nuclear Core > --- PROPULSION ------- Improved Aluminum Leg Improved Aluminum Leg Carbon-fiber Leg > --- UTILITY ---------- Medium Storage Unit Transport Network Coupler Advanced Targeting Computer Improved Light Armor Plating Reflective Plating > --- WEAPON ----------- Precision Beam Rifle Katana > --- INVENTORY -------- Light Deuterium Engine Improved Aluminum Leg Improved Terrain Scanner Improved Light Armor Plating Improved Light Armor Plating Authchip [Device] Authchip [Armor] Improved Medium Laser Gauss Rifle Grenade Launcher [Rating: 31] Favorites ----------- Power Cooled Ion Engine Engine Cooled Ion Engine Power Core Nuclear Core Propulsion Improved Aluminum Leg Treads Light Treads Leg Improved Aluminum Leg Flight Unit Improved Flight Unit Utility Medium Storage Unit Storage Medium Storage Unit Processor Transport Network Coupler Protection Light Armor Plating Weapon Katana Energy Gun Small Laser Ballistic Gun Improved Assault Rifle Launcher Grenade Launcher Impact Weapon Flail Slashing Weapon Katana Build | -11 -10 -9 -8 -8 ------- Run | Yrd Mat Mat Mat Gar Slots Evolved 4 | . . 2 2 . Power . | . . . . . Propulsion 1 | . . . 1 . Utility 3 | . . 2 1 . Weapon . | . . . . . Parts Attached 71 | 6 11 33 12 9 Power 8 | 1 1 4 2 . Engine 7 | 1 1 4 1 . Core 1 | . . . 1 . Reactor . | . . . . . Propulsion 23 | 2 4 11 4 2 Treads 5 | . 2 3 . . Leg 16 | 2 2 7 3 2 Wheel . | . . . . . Hover . | . . . . . Flight 2 | . . 1 1 . Utility 16 | 1 2 9 2 2 Device . | . . . . . Storage 4 | 1 1 2 . . Processor 4 | . . 4 . . Hackware . | . . . . . Protection 8 | . 1 3 2 2 Artifact . | . . . . . Weapon 24 | 2 4 9 4 5 Energy Gun 7 | 1 2 2 1 1 Energy Cannon . | . . . . . Ballistic Gun 11 | 1 2 5 1 2 Ballistic Cannon . | . . . . . Launcher 1 | . . . . 1 Special Weapon . | . . . . . Impact Weapon 2 | . . 1 1 . Slashing Weapon 3 | . . 1 1 1 Piercing Weapon . | . . . . . Special Melee Weapon . | . . . . . Unidentified Prototypes 6 | . . 4 2 . Parts Lost 25 | . 6 6 . 13 Power 4 | . 1 2 . 1 Propulsion 7 | . 2 1 . 4 Utility 7 | . . 3 . 4 Weapon 7 | . 3 . . 4 Highest Loss Streak 13 | . 6 2 . 13 To Critical Strikes . | . . . . . Average Slot Usage (%) 90 | . 87 89 95 93 Engine 9 | . 13 10 7 . Core 1 | . . . 1 8 Treads 2 | . 10 1 . . Leg 20 | . 14 20 27 24 Storage 10 | . 14 11 9 9 Processor 14 | . . 15 18 18 Protection 9 | . 5 7 14 16 Energy Gun 5 | . 17 2 6 8 Ballistic Gun 5 | . 9 5 6 1 Impact Weapon 4 | . . 5 2 . Slashing Weapon 6 | . . 8 2 6 Peak Build Rating 31 | 6 7 23 29 31 Average Rating 17 | 3 6 17 25 27 On Entrance 12 | . 6 6 22 29 Naked Turns . | . . . . . Heaviest Build 49 | 13 49 47 29 30 Greatest Support 41 | 20 40 40 39 41 Greatest Overweight (x) 2 | . 2 2 . 1 Average Overweight (x) . | . 1 . . . Largest Inventory Capacity 20 | 8 20 20 10 10 Average Capacity 11 | 7 18 10 10 10 Most Carried 15 | 6 9 15 10 10 Average Carried 8 | 3 5 9 8 9 Final Capacity 20 | 8 20 10 10 10 Final Carried 10 | 4 3 9 10 4 Class Distribution -------------------- 72% | Mutant 14% | Scavenger-Gladiator 13% | Scavenger-Mutant Dominant Class ---------------- Mutant | -10/Materials Mutant | -9/Materials Mutant | -8/Materials Mutant | -8/Garrison Resources | -11 -10 -9 -8 -8 ----------- Run | Yrd Mat Mat Mat Gar Matter Collected 1040 | 240 156 401 223 20 Remotely . | . . . . . Salvage Created 2007 | . 182 1236 369 220 Parts 118 | . 11 74 15 18 Haulers Intercepted 6 | . . 6 . . Recyclers Shooed . | . . . . . Parts Field Recycled . | . . . . . Retrieved Matter . | . . . . . Parts Self-Destructed . | . . . . . Prevented . | . . . . . Kills | -11 -10 -9 -8 -8 ------- Run | Yrd Mat Mat Mat Gar Combat Hostiles Destroyed 46 | . 6 26 7 7 Melee 21 | . . 16 1 4 Guns 21 | . 6 8 6 1 AOE 3 | . . 1 . 2 Classes Destroyed 8 | . 2 5 . 1 Hauler 6 | . . 6 . . Operator 2 | . . 2 . . Watcher 3 | . . 2 1 . Swarmer 17 | . 3 11 . 3 Grunt 16 | . 3 8 5 . Duelist 1 | . . 1 . . Sentry 11 | . . 6 2 3 Hunter 1 | . . . . 1 Best Kill Streak 5 | . 3 5 3 3 Combat Bots Only 4 | . 3 4 2 3 Max Kills in Single Turn 2 | . 1 2 1 1 Gunslinging 1 | . . 1 . . Exploded 1 | . . 1 . 1 Melee 1 | . . 1 1 1 Uniques/NPCs Destroyed . | . . . . . Combat | -11 -10 -9 -8 -8 -------- Run | Yrd Mat Mat Mat Gar Hostile Shots Fired 417 | . 88 141 35 153 Missed 121 | . 18 40 10 53 Damage Taken 4168 | . 925 1136 373 1734 Core 823 | . 200 200 73 350 Absorbed by Shields . | . . . . . Redirected to Shielding 43 | . 43 . . . Ignored by Resistances 52 | . . . 10 42 Core Remaining (%) 56 | 100 20 50 . . Volleys Fired 112 | . 30 32 31 19 Largest 2 | . 2 2 2 2 Hottest 91 | . 80 79 84 91 Shots Fired 189 | . 49 64 53 23 Gun 183 | . 49 64 53 17 Cannon . | . . . . . Launcher 6 | . . . . 6 Special . | . . . . . Kinetic 115 | . 38 41 31 5 Thermal 68 | . 11 23 22 12 Explosive 6 | . . . . 6 Electromagnetic . | . . . . . Robot Hit Streak 35 | . 4 26 19 35 Robot Miss Streak 5 | . 5 2 1 1 Penetration Max . | . . . . . Secondary Targets 2 | . . 1 1 . Max Gunslinging Chain 1 | . . 1 1 . Shots Hit Robots 222 | . 27 120 50 25 Core Hits 83 | . 11 39 17 16 Critical Kills 1 | . . 1 . . Critical Parts Destroyed 4 | . . 4 . . Critical Strikes 12 | . . 10 1 1 Burn 4 | . . 2 1 1 Destroy 1 | . . 1 . . Smash 4 | . . 4 . . Sever 3 | . . 3 . . Melee Attacks 106 | . . 91 2 13 Impact 14 | . . 13 1 . Slashing 92 | . . 78 1 13 Piercing . | . . . . . Sneak Attacks 13 | . . 13 . . Combat Hostiles 1 | . . 1 . . Follow-up Attacks 12 | . . 12 . . Damage Inflicted 5188 | . 260 3317 819 792 Guns 2037 | . 260 698 784 295 Cannons . | . . . . . Explosions 337 | . . . . 337 Melee 2814 | . . 2619 35 160 Ramming . | . . . . . Kinetic 1075 | . 183 378 429 85 Thermal 962 | . 77 320 355 210 Explosive 337 | . . . . 337 Electromagnetic . | . . . . . Impact 350 | . . 350 . . Slashing 2464 | . . 2269 35 160 Piercing . | . . . . . Highest Corruption . | . . . . . Average Corruption . | . . . . . Corruption Purged . | . . . . . Corruption Blocked . | . . . . . Overload Shots . | . . . . . Overflow Damage 359 | . . 359 . . Projectiles . | . . . . . Explosions . | . . . . . Melee 359 | . . 359 . . Knockbacks 1 | . . 1 . . Impact 1 | . . 1 . . Kinetic . | . . . . . Secondary . | . . . . . Self-Inflicted Damage . | . . . . . Shots . | . . . . . Rammed . | . . . . . Targets Rammed . | . . . . . Kicked . | . . . . . Crushed . | . . . . . Highest Temperature 387 | . 81 387 234 120 Average Temperature 65 | . 38 56 102 41 Received Heat Transfer 1458 | . 450 390 216 402 Effects 1 | . . 1 . . Interference 1 | . . 1 . . Siege Activations . | . . . . . Robots Corrupted 2 | . . 2 . . Combat Hostiles 1 | . . 1 . . Parts Fried 1 | . . 1 . . Impact Corruptions 7 | . . 7 . . Robots Melted . | . . . . . Combat Hostiles . | . . . . . Parts Melted 4 | . . . 4 . Heat Transferred 2348 | . 175 804 851 518 Parts Sabotaged . | . . . . . Parts Stolen . | . . . . . Parts Stripped . | . . . . . Power Chain Reactions . | . . . . . Alert | -11 -10 -9 -8 -8 ------- Run | Yrd Mat Mat Mat Gar Peak Influence 592 | . 95 592 490 524 Initial 318 | . . . 249 318 Average 251 | . 57 248 346 430 Maximum Alert Level 2 | . . 2 2 2 Low Security (%) 44 | 100 100 47 . . Level 1 25 | . . 21 59 49 Level 2 29 | . . 30 40 50 Level 3 . | . . . . . Level 4 . | . . . . . Level 5 . | . . . . . High Security . | . . . . . Max Security . | . . . . . Squads Dispatched 5 | . . 3 2 . Investigation . | . . . . . Extermination . | . . . . . Reinforcement 3 | . . 2 1 . Assault 1 | . . 1 . . Garrison 1 | . . . 1 . Intercept . | . . . . . Searches Triggered . | . . . . . Construction Impeded . | . . . . . Haulers Reinforced . | . . . . . Active Scanning Responses . | . . . . . Cargo Convoy Interrupts . | . . . . . Stealth | -11 -10 -9 -8 -8 --------- Run | Yrd Mat Mat Mat Gar Distress Signals 8 | . 1 6 . 1 Communications Jammed . | . . . . . Distress Signals . | . . . . . Times Spotted 85 | . 10 52 9 14 Peak Tracking Total 7 | . 5 7 3 5 Tactical Retreats 10 | . . 9 . 1 Traps | -11 -10 -9 -8 -8 ------- Run | Yrd Mat Mat Mat Gar Traps Triggered 1 | . 1 . . . Indirectly . | . . . . . Trap Hack Attempts . | . . . . . Triggered . | . . . . . Disarmed . | . . . . . Reprogrammed . | . . . . . Reused . | . . . . . Traps Extracted . | . . . . . Installed . | . . . . . Triggered 1 | . . 1 . . Machines | -11 -10 -9 -8 -8 ---------- Run | Yrd Mat Mat Mat Gar Machines Disabled 2 | . . . . 2 Max in Single Turn 1 | . . . . 1 Garrison Relay 1 | . . . . 1 Machines Repaired . | . . . . . Machines Dismantled . | . . . . . Machines Sabotaged . | . . . . . Overloaded Fab Kills . | . . . . . Hacking | -11 -10 -9 -8 -8 --------- Run | Yrd Mat Mat Mat Gar Machines Accessed 5 | . . 2 2 1 Terminals 4 | . . 2 1 1 Fabricators . | . . . . . Repair Stations . | . . . . . Recycling Units . | . . . . . Scanalyzers . | . . . . . Garrison Access 1 | . . . 1 . Total Hacks 8 | . . 2 4 2 Successful 3 | . . 1 2 . Failed 5 | . . 1 2 2 Catastrophic . | . . . . . Database Lockouts . | . . . . . Manual 4 | . . 1 3 . Terminals 7 | . . 2 3 2 Fabricators . | . . . . . Repair Stations . | . . . . . Recycling Units . | . . . . . Scanalyzers . | . . . . . Garrison Access 1 | . . . 1 . Terminal Hacks 2 | . . 1 1 . Robot Schematic 1 | . . . 1 . Robot Analysis 1 | . . 1 . . Fabricator Hacks . | . . . . . Repair Station Hacks . | . . . . . Recycling Unit Hacks . | . . . . . Scanalyzer . | . . . . . Garrison Access Hacks 1 | . . . 1 . Unlock Access 1 | . . . 1 . Unauthorized Hacks . | . . . . . Terminals . | . . . . . Fabricators . | . . . . . Repair Stations . | . . . . . Recycling Units . | . . . . . Scanalyzers . | . . . . . Garrison Access . | . . . . . Data Cores Recovered . | . . . . . Used . | . . . . . Hacking Detections 3 | . . 1 1 1 Full Trace Events . | . . . . . Feedback Events . | . . . . . Feedback Blocked . | . . . . . Robot Schematics Acquired 1 | . . . 1 . Robots Built . | . . . . . Authchips . | . . . . . Time . | . . . . . Total Robot Build Rating . | . . . . . Part Schematics Acquired . | . . . . . Parts Built . | . . . . . Authchips . | . . . . . Time . | . . . . . Total Part Build Rating . | . . . . . Parts Repaired . | . . . . . Time . | . . . . . Parts Recycled . | . . . . . Recycled Matter . | . . . . . Retrieved Matter . | . . . . . Retrieved Components . | . . . . . Parts Scanalyzed . | . . . . . Part Schematics Acquired . | . . . . . Parts Damaged . | . . . . . Bothacking | -11 -10 -9 -8 -8 ------------ Run | Yrd Mat Mat Mat Gar Used RIF Installer . | . . . . . Robots Hacked . | . . . . . Non-combat . | . . . . . Combat . | . . . . . Robot Hacks Applied . | . . . . . Relay Couplers Released 3 | . . . . 3 Machine Destruction 3 | . . . . 3 Fabnet Peak Effective % . | . . . . . Robots Rewired . | . . . . . Allies Hacked . | . . . . . Hacks Repelled . | . . . . . Allies | -11 -10 -9 -8 -8 -------- Run | Yrd Mat Mat Mat Gar Total Allies . | . . . . . Largest Group . | . . . . . Highest-Rated Group . | . . . . . Highest-Rated Ally . | . . . . . Total Orders . | . . . . . Ally Attacks . | . . . . . Total Damage . | . . . . . Kills . | . . . . . Allies Corrupted . | . . . . . Allies Melted . | . . . . . Intel | -11 -10 -9 -8 -8 ------- Run | Yrd Mat Mat Mat Gar Robot Analysis Total 1 | . . 1 . . Derelict Logs Recovered . | . . . . . Drone Launches . | . . . . . Drone Recoveries . | . . . . . Exploration | -11 -10 -9 -8 -8 ------------- Run | Yrd Mat Mat Mat Gar Turns Passed 3416 | 69 439 2120 382 406 Spaces Moved 1421 | 50 159 856 157 199 Core 8 | 8 . . . . Treads 108 | . 43 65 . . Legs 1305 | 42 116 791 157 199 Wheels . | . . . . . Hover . | . . . . . Flight . | . . . . . Fastest Speed 50 | 50 120 120 120 120 Average Speed 141 | 108 209 138 120 122 Slowest Speed 260 | 120 260 260 120 190 Overloaded Moves . | . . . . . Propulsion Burnouts . | . . . . . Robots Hopped . | . . . . . Cave-ins Triggered . | . . . . . Exploration Rate (%) 29 | 4 39 58 19 25 Regions Visited 4 Branch Regions . Pre-discovered Areas . | . . . . . Known Exits Taken 1 | . . . 1 . Unknown Exits Taken 3 | 1 1 1 . . Scrap Searched . | . . . . . Spaces Dug 1 | . . . . 1 Terrain Destroyed 21 | . . . . 21 Melee 1 | . . . . 1 Projectile . | . . . . . AOE 20 | . . . . 20 Terrain Rammed . | . . . . . Walls Destroyed . | . . . . . Machines Disabled . | . . . . . Actions | -11 -10 -9 -8 -8 --------- Run | Yrd Mat Mat Mat Gar Total 2503 | 63 221 1605 293 321 Wait 742 | . 15 566 85 76 Move 1418 | 49 158 855 157 199 Hop . | . . . . . Pick Up 47 | 8 6 27 4 2 Fast Attach 8 | 2 . 6 . . Attach 27 | 4 7 7 3 6 Detach . | . . . . . Swap 36 | . 4 20 9 3 Drop 21 | . 1 14 3 3 Fire 112 | . 30 32 31 19 Melee 92 | . . 78 1 13 Ram . | . . . . . Kick . | . . . . . Crush . | . . . . . Escape Stasis . | . . . . . Rewire . | . . . . . Trap . | . . . . . Miscellaneous . | . . . . . Route ------- -11/Scrapyard -10/Materials (discovered 2 exits: *Mat / [*Min]) -9/Materials (discovered 3 exits: *Mat x2 / [*Min]) -8/Materials (discovered 2 exits: [*Fac] / Gar) -8/Garrison (discovered 1 exit: [*Mat]) History --------- Turn | Location | Event 6 | -11/Scrapyard | Discovered new exit (range 15) 70 | -11/Scrapyard | Entered Materials 232 | -10/Materials | Discovered new exit (range 16) 299 | -10/Materials | Core integrity fell below 50% 306 | -10/Materials | Build established: Mutant 363 | -10/Materials | Lost 6 parts (1p2n3w) 473 | -10/Materials | Discovered new exit (range 15) 509 | -10/Materials | Entered another Materials area 509 | -9/Materials | Evolved 2 slots: Utility x2 967 | -9/Materials | Build established: Scavenger-Mutant 1547 | -9/Materials | Build established: Scavenger-Gladiator 1714 | -9/Materials | Discovered new exit (range 6) 2068 | -9/Materials | Build established: Mutant 2224 | -9/Materials | Discovered new exit (range 13) 2467 | -9/Materials | Discovered new exit (range 5) 2509 | -9/Materials | First assault squad dispatched 2629 | -9/Materials | Entered another Materials area 2629 | -8/Materials | Evolved 2 slots: Propulsion x1, Utility x1 2982 | -8/Materials | Garrison activated, responded to threat 3002 | -8/Materials | Discovered new exit (range 3) 3011 | -8/Materials | Identified exit to Garrison 3011 | -8/Materials | Entered Garrison 3195 | -8/Garrison | Triggered checkpoint 3242 | -8/Garrison | Garrison Relay disabled 3260 | -8/Garrison | Discovered new exit (range 5) 3261 | -8/Garrison | Triggered checkpoint 3339 | -8/Garrison | Spotted B-75 Beast 3391 | -8/Garrison | Core integrity fell below 50% 3405 | -8/Garrison | Triggered checkpoint 3410 | -8/Garrison | Triggered checkpoint 3417 | -8/Garrison | Self-destructed Last Messages --------------- 03363_ Carbon-fiber Leg destroyed. 03364_ Y-45 Defender destroyed. 03366_ Knocked back. 03369_ Imp. Light Armor Plating destroyed. 03373_ Y-45 Defender destroyed. 03374_ Prc. Beam Rifle destroyed. 03378_ Slug penetrates B-75 Beast. 03380_ Knocked back. 03381_ Slug penetrates B-75 Beast. 03383_ Grenade Launcher destroyed. 03383_ Slug penetrates A-27 Freighter. 03386_ Imp. Aluminum Leg destroyed. 03388_ Nuclear Core destroyed. 03394_ Gauss Rifle destroyed. 03410_ Beams of light sweep through the air. An alarm sounds. 03411_ G-47 Trooper suffers critical hit (Burn). 03412_ Imp. Aluminum Leg destroyed. 03413_ Imp. Light Armor Plating destroyed. 03413_ Critical hit (Burn: +37). Map ----- +----------------------------------------------------+ | ????????????????????????????????????# #"#??#""""? | | ????????????????????????????????????# !"#??#"""!? | | ????????????????????????????????????# ! #??#"" ? | | ????????????????????????????????????# !"#??#"* ? | | ??????????????????????????####??????# #"#??#"= #? | | ??????????????????????????#""#??????# ###??#"! #? | | ??????????????????????????# T#??????# #????#"| #? | | ??????????????????????????# "#??????# #????# ! ## | | ??????????????????????????# ##????### #????#"* | | ??????????????????????????# ###???# #????#"" | | ??????????????????????????# # ???# *=#????### | | ??????????????????????????# # #???# =%#??????# | | ??????????????????????????# # #???###/[#??????### | | ??????????????????????????# #"######"=%###### | | ??????????????????????????# *%[*%* | | ??????????????????????????# % ! = [ | | ??????????????????????????# [ % | | ??????????????????????????# #######"####### | | ??????????????????????????# #??????????????????? | | ??????????????????????????# #??????????????????? | | ??????????????????????????# #??????????????????? | | ??????????????????????????# #??????????????????? | | ????????????????????####??# #??????????????????? | | ????????????????????#g ?# #??????????????????? | | ?????????????????#### g## #??????????????????? | | ???????????????# @ #??????????????????? | | ?????????? #??A???????????????? | | ?????????? #??????????????????? | | ???????????##### ## ## #??????????????????? | | ???????????????# ???# ?# #??????????????????? | | ??????????????????? ? g ?????????????????? | | ?????????????????? ? #????????????????? | | ????????????????? ? #????????????????? | | ???????????????" g#????????????????? | | ???????????????# ## ?## ###????????????????? | | ???????????????# ?# ??# #??????????????????? | | ??????????????? ?? ??? #??????????????????? | | ???????????????? ??? ??? #??????????????????? | | ??????????????????? ??? #??????????????????? | | ?????????????????????""???? ##??????????????????? | | ?????????????????????????????????????????????????? | | ?????????????????????????????????????????????????? | | ?????????????????????????????????????????????????? | | ?????????????????????????????????????????????????? | | ?????????????????????????????????????????????????? | | ?????????????????????????????????????????????????? | | ?????????????????????????????????????????????????? | | ?????????????????????????????????????????????????? | | ?????????????????????????????????????????????????? | | ?????????????????????????????????????????????????? | +----------------------------------------------------+ Best States ------------- Heat Dissipation 31 Energy Generation 14 Energy Capacity 280 Matter Stores 300 Matter Capacity 300 Sight Range 16 Terrain Scan Density 10 Armor Coverage 300 Resistance: TH 10 Core Shielding 20 Evasion (%) 55 Targeting Accuracy 8 Melee Accuracy 5 Recoil Reduction 2 Authchip Count 2 Item Schematics ----------------- None Robot Schematics ------------------ M-28 Smith | -8/Materials | Hacked Fabricated ------------ Nothing Alien Tech Used ----------------- None Achievements -------------- None Challenges ------------ None Game ------ Seed DimensionalImprovedUnit Manual? 0 Play Time 00:33:05 Cumulative 43.0 hours Start 2024.11.25 @ 03:12:16 End 2024.11.25 @ 03:44:35 Sessions 1 Manual Loads 0 Difficulty Rogue Special Mode None Game No. 56 Rogue 56 Adventurer 0 Explorer 0 Win Type - Total 0 Types 0/0/0/0/0/0/0/0/0 Lore% 9 Gallery% 23 Achievement% 24 Wizard Run 0 Options --------- Layout 1 ASCII 0 Keyboard 0 Movement Mouse Keybinds 0 Fullscreen 2 Font 16/SmallcapsGlow Map View 55x38 Zoom Use 51% Tactical HUD 1 Map Filters NONE Filters NONE Steam 1 RUN: f37665cd-2741-4948-8056-4527617eb44e